bitfinex/quotes_BTCUSD_20251025
["timestamp","ask_amount","ask_price","bid_price","bid_amount"]
[1761355449362,0.8649633,111110.0,111100.0,0.002]
[1761355451387,0.8649633,111110.0,111100.0,0.182018]
[1761355451753,0.55664926,111110.0,111100.0,0.182018]
[1761355453537,0.02764737,111110.0,111100.0,0.58015105]
[1761355457108,0.00140891,111110.0,111100.0,1.04626509]
[1761355457965,0.21801244,111140.0,111120.0,0.1799856]
[1761355458100,0.21850421,111140.0,111120.0,0.48829964]
[1761355458298,0.52681825,111140.0,111120.0,0.48829964]
[1761355458572,0.52681825,111140.0,111120.0,0.1799856]
[1761355458775,0.52681825,111140.0,111120.0,0.5062982]
[1761355458974,0.21850421,111140.0,111120.0,0.48829964]
[1761355459470,0.21844264,111140.0,111120.0,0.73595865]
[1761355461017,0.21844264,111140.0,111120.0,0.73695865]
[1761355461650,0.21844264,111140.0,111120.0,0.73795865]
[1761355462650,0.21844264,111140.0,111130.0,0.1799694]
[1761355463042,0.21844264,111140.0,111130.0,0.48828344]
[1761355463251,0.21844264,111140.0,111130.0,0.1799694]
[1761355464130,0.21844264,111140.0,111130.0,0.1809694]
[1761355464561,0.21946015,111140.0,111130.0,0.1809694]
[1761355464772,0.21946015,111140.0,111130.0,0.1819694]
[1761355466105,0.21946015,111140.0,111130.0,0.1819073]
[1761355467970,0.55946015,111140.0,111130.0,0.002]
[1761355468436,0.03050928,111140.0,111130.0,0.27178841]
[1761355468840,0.03050928,111140.0,111130.0,0.57981061]
[1761355469390,0.03050928,111140.0,111130.0,0.57781061]
[1761355469653,0.03050928,111140.0,111130.0,0.57981061]
[1761355470619,0.03050928,111140.0,111130.0,0.27278841]
[1761355475304,0.03050928,111140.0,111130.0,0.58081061]
[1761355475909,0.03050928,111140.0,111130.0,0.60783762]
[1761355476120,0.03050928,111140.0,111130.0,0.58081061]
[1761355483455,0.03050928,111140.0,111130.0,0.27278841]
[1761355488873,0.03050928,111140.0,111130.0,0.58081061]
[1761355489076,0.21046249,111140.0,111130.0,0.27278841]
[1761355489327,0.03050928,111140.0,111130.0,0.27278841]
[1761355500932,0.03050928,111140.0,111130.0,0.58081061]
[1761355504251,0.03050928,111140.0,111130.0,0.6130431]
[1761355505191,0.02252987,111140.0,111130.0,0.6130431]
[1761355505950,0.02252987,111140.0,111130.0,0.3050209]
[1761355506360,0.02252987,111140.0,111130.0,0.6130431]
[1761355506876,0.02252987,111140.0,111130.0,0.64006921]
[1761355511979,0.02252987,111140.0,111130.0,0.63706921]
[1761355512126,0.02252987,111140.0,111130.0,0.63806921]
[1761355512322,0.02252987,111140.0,111130.0,0.64206921]
[1761355513084,0.02252987,111140.0,111130.0,0.82795149]
[1761355519168,0.02252987,111140.0,111130.0,0.51992929]
[1761355519400,0.02252987,111140.0,111130.0,0.82795149]
[1761355528114,0.02252987,111140.0,111130.0,0.87630022]
[1761355528946,0.02252987,111140.0,111130.0,1.18399606]
[1761355534076,0.02252987,111140.0,111130.0,0.87613704]
[1761355534481,0.02252987,111140.0,111130.0,1.18399606]
[1761355535926,0.02252987,111140.0,111130.0,1.24159606]
[1761355540820,0.02252987,111140.0,111130.0,1.20936357]
[1761355541606,0.02252987,111140.0,111130.0,1.15601484]
[1761355542009,0.02252987,111140.0,111130.0,1.16401484]
[1761355542634,0.02252987,111140.0,111130.0,1.21236426]
[1761355543371,0.02252987,111140.0,111130.0,1.22236425]
[1761355548445,0.02252987,111140.0,111130.0,1.17401483]
[1761355548856,0.02252987,111140.0,111130.0,1.48187385]
[1761355549064,0.02252987,111140.0,111130.0,1.2389016]
[1761355549614,0.02252987,111140.0,111130.0,1.2369016]
[1761355549824,0.02252987,111140.0,111130.0,1.2309016]
[1761355550022,0.02252987,111140.0,111130.0,1.2329016]
[1761355551052,0.02252987,111140.0,111130.0,1.2399016]
[1761355553317,0.01609265,111150.0,111140.0,1.12057556]
[1761355553723,0.0002,111160.0,111150.0,0.2161193]
[1761355553881,0.0002,111160.0,111150.0,1.10355515]
[1761355554077,0.0002,111160.0,111150.0,0.79569613]
[1761355554281,0.0002,111160.0,111150.0,0.48783711]
[1761355554476,0.0002,111160.0,111150.0,0.82271545]
[1761355554889,0.0002,111160.0,111150.0,0.82371545]
[1761355555103,0.83681765,111190.0,111170.0,0.17990465]
[1761355555339,0.1766712,111180.0,111170.0,0.28771412]
[1761355555531,0.52904706,111190.0,111170.0,0.57758268]
[1761355555789,0.52904706,111190.0,111180.0,0.08981901]
[1761355556027,0.34908204,111190.0,111180.0,0.26970747]
[1761355557268,0.34008843,111190.0,111180.0,0.26970747]
[1761355557883,0.34008843,111190.0,111180.0,0.27170747]
[1761355558062,0.34008843,111190.0,111180.0,0.57956649]
[1761355558296,0.34008843,111190.0,111180.0,0.27170747]
[1761355558709,0.34178329,111190.0,111180.0,0.27170747]
[1761355558918,0.34178329,111190.0,111180.0,0.57956649]
[1761355559408,0.00178329,111190.0,111180.0,0.73732649]
[1761355561050,0.00178329,111190.0,111180.0,0.42946747]
[1761355561254,0.00178329,111190.0,111180.0,0.73732649]
[1761355561650,0.00178329,111190.0,111180.0,0.42946747]
[1761355563748,0.00178329,111190.0,111180.0,0.73732649]
[1761355565235,0.00178329,111190.0,111180.0,1.04518551]
[1761355565667,0.0042,111200.0,111190.0,1.13963163]
[1761355565908,0.0002,111210.0,111200.0,1.14961544]
[1761355566124,0.0002,111210.0,111200.0,0.5220105]
[1761355566349,0.0002,111210.0,111200.0,0.96972855]
[1761355566561,0.0002,111210.0,111200.0,0.83077597]
[1761355566786,0.0002,111210.0,111200.0,0.85482357]
[1761355566998,0.0002,111210.0,111200.0,1.16268259]
[1761355567429,0.0002,111210.0,111200.0,1.13062546]
[1761355567647,0.51249934,111240.0,111220.0,0.17982377]
[1761355567849,0.51258779,111240.0,111220.0,0.17982377]
[1761355568460,0.20472877,111240.0,111220.0,0.17982377]
[1761355568672,0.51258779,111240.0,111220.0,0.17982377]
[1761355568876,0.20472877,111240.0,111220.0,0.17982377]
[1761355569073,0.52157736,111240.0,111220.0,0.18182377]
[1761355569279,0.20688612,111240.0,111220.0,0.48968279]
[1761355569865,0.20688612,111240.0,111220.0,0.49068279]
[1761355570421,0.20688612,111240.0,111230.0,0.1798076]
[1761355570597,0.02709468,111240.0,111230.0,0.57748563]
[1761355571404,0.02709468,111240.0,111230.0,0.26962661]
[1761355571598,0.02709468,111240.0,111230.0,0.27262661]
[1761355571797,0.0287884,111240.0,111230.0,0.27262661]
[1761355576769,0.20857984,111240.0,111230.0,0.27262661]
[1761355578183,0.33664742,111240.0,111230.0,0.27262661]
[1761355578385,0.0287884,111240.0,111230.0,0.27262661]
[1761355578585,0.33664742,111240.0,111230.0,0.27262661]
[1761355579105,0.01688649,111240.0,111230.0,0.27262661]
[1761355579301,0.30964119,111240.0,111230.0,0.27262661]
[1761355580321,0.00178217,111240.0,111230.0,0.27262661]
[1761355580506,0.30964119,111240.0,111230.0,0.27262661]
[1761355580840,0.00178217,111240.0,111230.0,0.27262661]
[1761355581044,0.30964119,111240.0,111230.0,0.27262661]
[1761355581683,0.00178217,111240.0,111230.0,0.27262661]
[1761355581874,0.30964119,111240.0,111230.0,0.27262661]
[1761355582516,0.79729165,111240.0,111230.0,0.09281901]
[1761355582977,0.82429674,111240.0,111230.0,0.09281901]
[1761355583370,0.51643772,111240.0,111230.0,0.09281901]
[1761355583591,0.51643772,111240.0,111230.0,0.27262661]
[1761355583781,0.51643772,111240.0,111230.0,0.09281901]
[1761355584418,0.51643772,111240.0,111230.0,0.27262661]
[1761355587308,0.02878726,111240.0,111230.0,0.27262661]
[1761355587514,0.33664628,111240.0,111230.0,0.27262661]
[1761355587927,0.51643772,111240.0,111230.0,0.27262661]
[1761355590418,0.2085787,111240.0,111230.0,0.27262661]
[1761355590624,0.48943263,111240.0,111230.0,0.27262661]
[1761355590828,0.18157361,111240.0,111230.0,0.27262661]
[1761355591219,0.16966932,111240.0,111230.0,0.27262661]
[1761355597757,0.47716822,111240.0,111230.0,0.27262661]
[1761355597960,0.47716822,111240.0,111230.0,0.09281901]
[1761355601129,0.16966932,111240.0,111230.0,0.09281901]
[1761355601337,0.49517733,111240.0,111230.0,0.09281901]
[1761355601521,0.47716822,111240.0,111230.0,0.09281901]
[1761355601722,0.46764629,111240.0,111230.0,0.09281901]
[1761355602735,1.11514519,111240.0,111230.0,0.003]
[1761355602945,4.11514519,111240.0,111230.0,0.003]
[1761355603157,4.25610021,111240.0,111230.0,0.003]
[1761355603360,4.2884973,111240.0,111230.0,0.003]
[1761355603680,4.2884973,111240.0,111230.0,0.002]
[1761355603891,4.2884973,111240.0,111230.0,0.003]
[1761355604328,4.25610021,111240.0,111230.0,0.002]
[1761355604570,0.17985022,111210.0,111190.0,0.1888659]
[1761355604798,0.50535823,111210.0,111200.0,0.08981901]
[1761355605016,0.48734912,111210.0,111200.0,0.08981901]
[1761355606084,0.17985022,111210.0,111200.0,0.27265729]
[1761355606339,0.17983994,111210.0,111200.0,0.27265729]
[1761355606908,0.4963352,111220.0,111200.0,0.27265729]
[1761355607110,0.17983994,111210.0,111200.0,0.09280118]
[1761355607510,0.17508061,111210.0,111200.0,0.09280118]
[1761355607708,0.17508061,111210.0,111200.0,0.09080118]
[1761355608145,0.17508061,111210.0,111200.0,0.09280118]
[1761355608300,0.17508061,111210.0,111200.0,0.09180118]
[1761355608502,0.17508061,111210.0,111200.0,0.09380118]
[1761355608870,0.17508061,111210.0,111200.0,0.09280118]
[1761355609090,0.19308972,111210.0,111200.0,0.09380118]
[1761355613201,0.17983994,111210.0,111200.0,0.27365729]
[1761355617986,0.3074989,111220.0,111200.0,0.27365729]
[1761355619090,0.3382968,111220.0,111200.0,0.27365729]
[1761355619525,0.3382968,111220.0,111210.0,0.17983994]
[1761355620016,0.6457957,111220.0,111210.0,0.17983994]
[1761355620416,0.6457957,111220.0,111210.0,0.18082211]
[1761355620639,0.6457957,111220.0,111210.0,0.18182211]
[1761355620972,0.6457957,111220.0,111210.0,0.18282211]
[1761355623360,0.82561947,111220.0,111210.0,0.18282211]
[1761355625240,0.81371599,111220.0,111210.0,0.18282211]
[1761355625885,0.81371599,111220.0,111210.0,0.17445177]
[1761355625886,0.80801205,111220.0,111210.0,0.17445177]
[1761355626119,0.80648396,111220.0,111210.0,0.17445177]
[1761355627094,0.62666019,111220.0,111210.0,0.17467097]
[1761355627339,0.49177255,111240.0,111210.0,0.17467097]
[1761355627577,0.32550801,111230.0,111220.0,0.17982171]
[1761355627809,0.3074989,111230.0,111220.0,0.17982171]
[1761355628036,0.3074989,111230.0,111220.0,0.18080388]
[1761355628264,0.4873065,111230.0,111220.0,0.18080594]
[1761355628500,0.3074989,111230.0,111220.0,0.18080594]
[1761355629864,0.3074989,111230.0,111220.0,0.18180594]
[1761355630322,0.3074989,111230.0,111220.0,0.18280594]
[1761355632679,0.4873065,111230.0,111220.0,0.18280594]
[1761355632880,0.3074989,111230.0,111220.0,0.18280594]
[1761355634772,0.3074989,111230.0,111220.0,0.18182377]
[1761355635741,0.3074989,111230.0,111220.0,0.18251128]
[1761355636777,0.18878201,111240.0,111220.0,0.18251128]
[1761355636991,0.32550801,111230.0,111220.0,0.18182377]
[1761355637207,0.3074989,111230.0,111220.0,0.18182377]
[1761355637866,0.3074989,111230.0,111220.0,0.18082377]
[1761355638086,0.3074989,111230.0,111220.0,0.18151128]
[1761355638868,0.3074989,111230.0,111220.0,0.18251128]
[1761355639088,0.3074989,111230.0,111220.0,0.18182377]
[1761355640188,0.3074989,111230.0,111220.0,0.18266987]
[1761355641786,0.3074989,111230.0,111220.0,0.18182377]
[1761355642189,0.49628091,111240.0,111220.0,0.18182377]
[1761355642209,0.3074989,111230.0,111220.0,0.18182377]
[1761355642403,0.3074989,111230.0,111220.0,0.18273232]
[1761355643585,0.3074989,111230.0,111220.0,0.18204296]
[1761355644582,0.3074989,111230.0,111220.0,0.1828872]
[1761355644988,0.4873065,111230.0,111220.0,0.1828872]
[1761355645188,0.3074989,111230.0,111220.0,0.1828872]
[1761355645754,0.3074989,111230.0,111220.0,0.18204296]
[1761355646751,0.3074989,111230.0,111220.0,0.1828872]
[1761355647221,3.99750349,111230.0,111220.0,0.00306343]
[1761355647426,4.39142726,111230.0,111220.0,0.00306343]
[1761355647622,4.53253812,111230.0,111220.0,0.00306343]
[1761355647764,4.50014103,111230.0,111220.0,0.00306343]
[1761355647959,4.50014103,111230.0,111220.0,0.00221919]
[1761355648205,4.53246872,111230.0,111220.0,0.00121919]
[1761355648384,4.53246872,111230.0,111220.0,0.00021919]
[1761355649231,4.53246872,111230.0,111220.0,0.0009104]
[1761355649854,0.48738736,111180.0,111170.0,0.1826549]
[1761355650259,0.48738736,111180.0,111170.0,0.00275025]
[1761355650758,0.17988846,111180.0,111170.0,0.00275025]
[1761355650966,0.19789757,111180.0,111170.0,0.0028387]
[1761355651169,0.19789757,111180.0,111170.0,0.0038387]
[1761355651746,0.19789757,111180.0,111170.0,0.0078387]
[1761355651952,0.19789757,111180.0,111170.0,0.18774335]
[1761355652178,0.50539647,111180.0,111170.0,0.18774335]
[1761355652381,0.17988846,111180.0,111170.0,0.18832372]
[1761355652582,0.19789757,111180.0,111170.0,0.18832372]
[1761355652744,0.50575138,111180.0,111170.0,0.18832372]
[1761355652945,0.48774227,111180.0,111170.0,0.18832372]
[1761355655998,0.48774227,111180.0,111170.0,0.00841907]
[1761355656199,0.48774227,111180.0,111170.0,0.18832372]
[1761355656765,0.48774227,111180.0,111170.0,0.00841907]
[1761355657387,0.48774227,111180.0,111170.0,0.18832372]
[1761355658739,0.17988846,111180.0,111170.0,0.18832372]
[1761355658954,0.50575138,111180.0,111170.0,0.18832372]
[1761355659160,0.48774227,111180.0,111170.0,0.18832372]
[1761355659818,0.48094774,111180.0,111170.0,0.18832372]
[1761355660552,0.17309393,111180.0,111170.0,0.18832372]
[1761355660840,0.49895685,111180.0,111170.0,0.18832372]
[1761355661052,0.48094774,111180.0,111170.0,0.18832372]
[1761355663452,0.48094774,111180.0,111170.0,0.00841907]
[1761355663887,0.78880155,111180.0,111170.0,0.00841907]
[1761355664202,1.12880155,111180.0,111170.0,0.00841907]
[1761355664955,1.12880155,111180.0,111170.0,0.00441907]
[1761355665223,1.12880155,111180.0,111170.0,0.00641907]
[1761355665712,1.12880155,111180.0,111170.0,0.00441907]
[1761355665860,1.12880155,111180.0,111170.0,0.00641907]
[1761355666066,1.12880155,111180.0,111170.0,0.00541907]
[1761355666284,1.12880155,111180.0,111170.0,0.00641907]
[1761355666711,0.51309393,111180.0,111170.0,0.00641907]
[1761355667011,1.12880155,111180.0,111170.0,0.00541907]
[1761355667211,1.12880155,111180.0,111170.0,0.00641907]
[1761355669364,0.78880155,111180.0,111170.0,0.00641907]
[1761355670737,0.34,111200.0,111170.0,0.09623808]
[1761355670940,0.05656403,111220.0,111210.0,0.17983994]
[1761355671160,0.02702336,111230.0,111220.0,0.17982377]
[1761355671379,0.48764563,111240.0,111220.0,0.17982377]
[1761355671539,0.30785381,111230.0,111220.0,0.17982377]
[1761355672155,0.30785381,111230.0,111220.0,0.18049259]
[1761355672464,0.48764563,111240.0,111220.0,0.18049259]
[1761355673135,0.82764563,111240.0,111230.0,0.1798076]
[1761355673338,0.64785381,111240.0,111230.0,0.1798076]
[1761355673479,0.82764525,111240.0,111230.0,0.1798076]
[1761355674296,0.82764525,111240.0,111230.0,0.18038797]
[1761355675361,0.82764525,111240.0,111230.0,0.00058037]
[1761355678288,0.82764525,111240.0,111230.0,0.18038797]
[1761355679569,0.02533864,111250.0,111240.0,0.17979144]
[1761355679792,0.04334775,111250.0,111240.0,0.17979144]
[1761355680022,0.02533864,111250.0,111240.0,0.18037181]
[1761355680254,0.04334775,111250.0,111240.0,0.18037181]
[1761355681596,0.04334775,111250.0,111240.0,0.18137181]
[1761355682028,0.02533864,111250.0,111240.0,0.18137181]
[1761355682989,0.20511392,111250.0,111240.0,0.18237181]
[1761355683391,0.51296773,111250.0,111240.0,0.18237181]
[1761355683980,0.20511392,111250.0,111240.0,0.18237181]
[1761355684578,0.51296773,111250.0,111240.0,0.18237181]
[1761355686210,0.02533864,111250.0,111240.0,0.18237181]
[1761355686647,0.22312303,111250.0,111240.0,0.18237181]
[1761355686853,0.20511392,111250.0,111240.0,0.18237181]
[1761355687778,0.51296773,111250.0,111240.0,0.18237181]
[1761355689195,0.20511392,111250.0,111240.0,0.18237181]
[1761355689370,0.51296773,111250.0,111240.0,0.18237181]
[1761355689760,0.51296773,111250.0,111240.0,0.00258037]
[1761355692705,0.51296773,111250.0,111240.0,0.18237181]
[1761355693496,0.51296773,111250.0,111240.0,0.00258037]
[1761355694577,0.51296773,111250.0,111240.0,0.18237181]
[1761355695729,0.20511392,111250.0,111240.0,0.18237181]
[1761355695926,0.51296773,111250.0,111240.0,0.18237181]
[1761355696274,0.20511392,111250.0,111240.0,0.18237181]
[1761355696470,0.02533864,111250.0,111240.0,0.18237181]
[1761355701341,0.02533864,111250.0,111240.0,1.04625844]
[1761355701578,0.02533864,111250.0,111240.0,0.45458438]
[1761355701929,0.02533864,111250.0,111240.0,0.45358438]
[1761355702360,0.04334775,111250.0,111240.0,0.29522438]
[1761355702798,0.04334775,111250.0,111240.0,0.29822438]
[1761355703121,0.04334775,111250.0,111240.0,0.45658438]
[1761355703299,0.51296773,111250.0,111240.0,0.20840537]
[1761355703822,0.20511392,111250.0,111240.0,0.20840537]
[1761355704005,0.51296773,111250.0,111240.0,0.20840537]
[1761355704210,0.51296773,111250.0,111240.0,0.20940537]
[1761355705181,0.20511392,111250.0,111240.0,0.20940537]
[1761355705626,0.51296773,111250.0,111240.0,0.20940537]
[1761355705798,0.20511392,111250.0,111240.0,0.20940537]
[1761355705976,0.51296773,111250.0,111240.0,0.20940537]
[1761355706569,0.20511392,111250.0,111240.0,0.20940537]
[1761355707626,0.51296773,111250.0,111240.0,0.20940537]
[1761355708429,0.51296773,111250.0,111240.0,0.02961393]
[1761355708641,0.51296773,111250.0,111240.0,0.00558037]
[1761355709355,0.51296773,111250.0,111240.0,0.20940537]
[1761355712808,0.51261303,111250.0,111240.0,0.20940537]
[1761355713063,0.51261303,111250.0,111240.0,0.00558037]
[1761355714202,0.51261303,111250.0,111240.0,0.18437181]
[1761355714405,0.51261303,111250.0,111240.0,0.18137181]
[1761355714609,0.51261303,111250.0,111240.0,0.00358037]
[1761355726956,0.20511392,111250.0,111240.0,0.00358037]
[1761355727366,0.51261303,111250.0,111240.0,0.00358037]
[1761355728619,0.85261303,111250.0,111240.0,0.00358037]
[1761355729667,0.54511392,111250.0,111240.0,0.00358037]
[1761355729869,0.85261303,111250.0,111240.0,0.00358037]
[1761355732303,4.28611343,111250.0,111240.0,0.00358037]
[1761355732767,4.31037852,111250.0,111240.0,0.00358037]
[1761355733167,4.34270621,111250.0,111240.0,0.00258037]
[1761355733371,4.31037852,111250.0,111240.0,0.00258037]
[1761355733777,4.31037852,111250.0,111240.0,0.00058037]
[1761355737086,4.00287941,111250.0,111240.0,0.00058037]
[1761355737359,4.31037852,111250.0,111240.0,0.00058037]
[1761355739467,4.35225591,111250.0,111240.0,0.00058037]
[1761355742965,4.0447568,111250.0,111240.0,0.00058037]
[1761355743324,4.35225591,111250.0,111240.0,0.00058037]
[1761355743525,4.44207492,111250.0,111240.0,0.00058037]
[1761355745923,4.35225591,111250.0,111240.0,0.00058037]
[1761355750269,4.376521,111250.0,111240.0,0.00058037]
[1761355756769,0.88459251,111250.0,111240.0,0.00058037]
[1761355756946,3.88459251,111250.0,111240.0,0.00058037]
[1761355757152,3.95240658,111250.0,111240.0,0.00058037]
[1761355757348,3.64490747,111250.0,111240.0,0.00058037]
[1761355758757,3.98490747,111250.0,111240.0,0.00058037]
[1761355759545,4.05935742,111250.0,111240.0,0.00058037]
[1761355761764,3.99154335,111250.0,111240.0,0.00058037]
[1761355764626,3.9835639,111250.0,111240.0,0.00058037]
[1761355769037,4.07338291,111250.0,111240.0,0.00058037]
[1761355769411,3.9835639,111250.0,111240.0,0.00058037]
[1761355773078,4.0783339,111250.0,111240.0,0.00058037]
[1761355773289,3.9835639,111250.0,111240.0,0.00058037]
[1761355774753,3.98353215,111250.0,111240.0,0.00058037]
[1761355775110,3.95112694,111250.0,111240.0,0.00058037]
[1761355777076,4.39045805,111250.0,111240.0,0.00058037]
[1761355778982,3.60161484,111250.0,111240.0,0.00058037]
[1761355779193,4.30063904,111250.0,111240.0,0.00058037]
[1761355780319,3.60161484,111250.0,111240.0,0.00058037]
[1761355780546,3.95112694,111250.0,111240.0,0.00058037]
[1761355792078,4.30063904,111250.0,111240.0,0.00058037]
[1761355799775,4.33302049,111250.0,111240.0,0.00058037]
[1761355806192,3.63399629,111250.0,111240.0,0.00058037]
[1761355806596,4.33302049,111250.0,111240.0,0.00058037]
[1761355813686,3.63399629,111250.0,111240.0,0.00058037]
[1761355814100,4.33302049,111250.0,111240.0,0.00058037]
[1761355818556,3.63399629,111250.0,111240.0,0.00058037]
[1761355818695,4.33302049,111250.0,111240.0,0.00058037]
[1761355829321,4.4228395,111250.0,111240.0,0.00058037]
[1761355829602,4.04094595,111250.0,111240.0,0.00058037]
[1761355829803,3.95112694,111250.0,111240.0,0.00058037]
[1761355833783,3.17977528,111250.0,111240.0,0.00058037]
[1761355833962,3.17977528,111250.0,111240.0,0.01058036]
[1761355834107,3.51977528,111250.0,111240.0,0.01058036]
[1761355834303,0.51977528,111250.0,111240.0,0.01058036]
[1761355834557,0.51501595,111250.0,111240.0,0.01058036]
[1761355836095,0.17501595,111250.0,111240.0,0.1903718]
[1761355836280,0.17977309,111260.0,111240.0,0.20037179]
[1761355836482,0.1977822,111260.0,111250.0,0.00999999]
[1761355836681,0.22442779,111260.0,111250.0,0.00999999]
[1761355836905,0.20641868,111260.0,111250.0,0.00999999]
[1761355837105,0.20641868,111260.0,111250.0,0.03700535]
[1761355837286,0.54641868,111260.0,111250.0,0.03700535]
[1761355837481,0.54641868,111260.0,111250.0,0.03758572]
[1761355839244,0.54641868,111260.0,111250.0,0.22736099]
[1761355840254,0.54641868,111260.0,111250.0,0.22836099]
[1761355840551,0.54641868,111260.0,111250.0,0.22936099]
[1761355841571,0.36664559,111260.0,111250.0,0.22936099]
[1761355841723,0.54640471,111260.0,111250.0,0.22936099]
[1761355842129,0.5467433,111260.0,111250.0,0.22936099]
[1761355842548,0.5467433,111260.0,111250.0,0.04958571]
[1761355846267,0.5467433,111260.0,111250.0,0.03958572]
[1761355846468,0.92851785,111260.0,111250.0,0.03958572]
[1761355849324,0.92851785,111260.0,111250.0,0.02958573]
[1761355849526,0.92851785,111260.0,111250.0,0.03958572]
[1761355853306,0.5467433,111260.0,111250.0,0.03958572]
[1761355853732,0.5467433,111260.0,111250.0,0.219361]
[1761355854313,0.5467433,111260.0,111250.0,0.22936099]
[1761355856804,0.36698418,111260.0,111250.0,0.22936099]
[1761355857946,0.36698418,111260.0,111250.0,0.22836099]
[1761355858147,0.36698418,111260.0,111250.0,0.22936099]
[1761355858368,0.36698418,111260.0,111250.0,0.23036099]
[1761355862348,0.02698418,111260.0,111250.0,0.70195455]
[1761355862751,0.02698418,111260.0,111250.0,0.85165455]
[1761355862953,0.02698418,111260.0,111250.0,0.46988]
[1761355863472,0.00033859,111260.0,111250.0,0.46988]
[1761355864665,0.00033859,111260.0,111250.0,0.85165455]
[1761355865221,0.00033859,111260.0,111250.0,0.72611535]
[1761355865427,0.00033859,111260.0,111250.0,0.87590707]
[1761355865635,0.00033859,111260.0,111250.0,0.79569683]
[1761355865837,0.00033859,111260.0,111250.0,0.87986121]
[1761355865993,0.00033859,111260.0,111250.0,1.64341031]
[1761355866189,0.00033859,111260.0,111250.0,0.96467444]
[1761355866397,0.00033859,111260.0,111250.0,1.79311031]
[1761355866800,0.00033859,111260.0,111250.0,1.41464121]
[1761355867009,0.00033859,111260.0,111250.0,1.42164121]
[1761355867177,0.00033859,111260.0,111250.0,1.18464121]
[1761355867586,0.00033859,111260.0,111250.0,1.19364121]
[1761355868122,0.00033859,111260.0,111250.0,1.13075444]
[1761355868332,0.00033859,111260.0,111250.0,0.91511444]
[1761355868529,0.00033859,111260.0,111250.0,1.89426354]
[1761355868710,0.00033859,111260.0,111250.0,1.95715031]
[1761355869089,0.00033859,111260.0,111250.0,1.89226354]
[1761355871748,0.00033859,111260.0,111250.0,2.13876354]
[1761355871942,0.00033859,111260.0,111250.0,2.25876354]
[1761355872421,0.00033859,111260.0,111250.0,2.30678699]
[1761355878091,0.00033859,111260.0,111250.0,2.64678699]
[1761355878301,0.15,111300.0,111290.0,0.01999998]
[1761355878504,0.15,111300.0,111290.0,0.97900419]
[1761355878834,0.15135382,111300.0,111290.0,0.9982818]
[1761355878964,0.15135382,111300.0,111290.0,1.02527185]
[1761355879172,0.15135382,111300.0,111290.0,0.64407767]
[1761355879396,0.15184539,111300.0,111290.0,1.02585222]
[1761355880239,0.15184539,111300.0,111290.0,1.0660345]
[1761355880661,0.15184539,111300.0,111290.0,1.44780905]
[1761355880857,0.15184539,111300.0,111290.0,1.12201284]
[1761355881087,0.15184539,111300.0,111290.0,1.09002522]
[1761355882291,0.15184539,111300.0,111290.0,1.08602522]
[1761355882736,0.15184539,111300.0,111290.0,0.92802522]
[1761355882890,0.15184539,111300.0,111290.0,1.14354522]
[1761355884674,0.15184539,111300.0,111290.0,0.99384523]
[1761355884879,0.15184539,111300.0,111290.0,1.78938195]
[1761355885006,0.15184539,111300.0,111290.0,1.81337267]
[1761355885953,0.15184539,111300.0,111290.0,0.66804902]
[1761355886138,0.15184539,111300.0,111290.0,1.81337267]
[1761355886472,0.15184539,111300.0,111290.0,1.04982357]
[1761355887993,0.02684539,111300.0,111290.0,1.99539123]
[1761355888205,0.02684539,111300.0,111290.0,1.76539123]
[1761355888398,0.02684539,111300.0,111290.0,1.75539124]
[1761355888602,0.02684539,111300.0,111290.0,1.76539123]
[1761355888898,0.02684539,111300.0,111290.0,1.75539124]
[1761355889223,0.02684539,111300.0,111290.0,1.76539123]
[1761355889429,0.02684539,111300.0,111290.0,1.81337267]
[1761355889636,0.02684539,111300.0,111290.0,1.96307267]
[1761355890268,0.02684539,111300.0,111290.0,2.12138505]
[1761355892937,0.02684539,111300.0,111290.0,2.24138505]
[1761355894278,0.02684539,111300.0,111290.0,1.47783595]
[1761355894704,0.02684539,111300.0,111290.0,1.0960614]
[1761355894900,0.02684539,111300.0,111290.0,1.2617256]
[1761355895135,0.02684539,111300.0,111290.0,1.79372764]
[1761355895647,0.02684539,111300.0,111290.0,2.18992764]
[1761355896814,0.02684539,111300.0,111290.0,1.2767414]
[1761355897047,0.02684539,111300.0,111290.0,1.82508317]
[1761355897214,0.02684539,111300.0,111290.0,2.17391629]
[1761355898019,0.02684539,111300.0,111290.0,2.18992764]
[1761355899768,0.02684539,111300.0,111290.0,1.4922614]
[1761355899968,0.02684539,111300.0,111290.0,2.17992765]
[1761355900171,0.02684539,111300.0,111290.0,2.18992764]
[1761355900935,0.02684539,111300.0,111290.0,1.84109452]
[1761355901412,0.02684539,111300.0,111290.0,1.94342764]
[1761355901775,0.02684539,111300.0,111290.0,1.93342765]
[1761355902117,0.02684539,111300.0,111290.0,1.22937452]
[1761355902314,0.02684539,111300.0,111290.0,1.44489452]
[1761355902897,0.02684539,111300.0,111290.0,1.43489453]
[1761355903079,0.02684539,111300.0,111290.0,1.44489452]
[1761355903894,0.02684539,111300.0,111290.0,1.4448211]
[1761355904136,0.02684539,111300.0,111290.0,1.39683966]
[1761355904333,0.02684539,111300.0,111290.0,1.38683967]
[1761355904930,0.02684539,111300.0,111290.0,1.39683966]
[1761355905544,0.02684539,111300.0,111290.0,1.74567278]
[1761355906172,0.02684539,111300.0,111290.0,1.81055955]
[1761355906958,0.02684539,111300.0,111290.0,1.46172643]
[1761355907313,0.37567851,111300.0,111290.0,0.52119103]
[1761355907429,0.37567851,111300.0,111290.0,0.49438796]
[1761355907640,0.37567851,111300.0,111290.0,0.51242096]
[1761355907849,0.55537302,111300.0,111290.0,0.51242096]
[1761355908061,0.2065399,111300.0,111290.0,0.51242096]
[1761355908291,0.55537302,111300.0,111290.0,0.51243037]
[1761355908467,0.55537302,111300.0,111290.0,0.48544032]
[1761355909385,0.55537302,111300.0,111290.0,0.48544117]
[1761355910224,0.55537302,111300.0,111290.0,0.29573052]
[1761355910655,0.2065399,111300.0,111290.0,0.48544117]
[1761355910887,0.55537302,111300.0,111290.0,0.48544117]
[1761355912233,0.2065399,111300.0,111290.0,0.45337495]
[1761355913026,0.02684539,111300.0,111290.0,0.80220807]
[1761355913230,0.02684539,111300.0,111290.0,0.99234531]
[1761355913431,0.02684539,111300.0,111290.0,1.01933466]
[1761355917260,0.02684539,111300.0,111290.0,1.05551694]
[1761355917462,0.02684539,111300.0,111290.0,0.68263206]
[1761355917986,0.02684539,111300.0,111290.0,1.03146518]
[1761355921324,0.02684539,111300.0,111290.0,0.68263206]
[1761355921545,0.02684539,111300.0,111290.0,0.70668007]
[1761355921743,0.02684539,111300.0,111290.0,0.67461385]
[1761355921986,0.02684539,111300.0,111290.0,0.66461386]
[1761355922207,0.02684539,111300.0,111290.0,1.01344698]
[1761355922402,0.02684539,111300.0,111290.0,1.02344697]
[1761355922812,0.02684539,111300.0,111290.0,1.01344698]
[1761355923159,0.02684539,111300.0,111290.0,1.02344697]
[1761355923535,0.02684539,111300.0,111290.0,0.98722469]
[1761355923791,0.02684539,111300.0,111290.0,0.47035158]
[1761355924038,0.02684539,111300.0,111290.0,0.48035157]
[1761355924712,0.02684539,111300.0,111290.0,0.43709937]
[1761355924961,0.02684539,111300.0,111290.0,0.48040868]
[1761355926458,0.02684539,111300.0,111290.0,0.45341933]